[Event "*** Titled Tuesday Blitz"]
[Site "Chess.com"]
[Date "2020.11.10"]
[Round "10"]
[White "FMKonstantin_Twitch"]
[Black "XDPS"]
[Result "1-0"]
[WhiteElo "2577"]
[BlackElo "2767"]
[TimeControl "180+1"]
[EndTime "12:04:56 PST"]
[Termination "FMKonstantin_Twitch won on time"]

1. c4 {[%clk 0:02:59.8]} 1... e6 {[%clk 0:02:57.5]} 2. Nc3 {[%clk 0:02:59.4]}
2... d5 {[%clk 0:02:57.8]} 3. Nf3 {[%clk 0:02:58]} 3... Nf6 {[%clk 0:02:57.9]}
4. g3 {[%clk 0:02:58.3]} 4... dxc4 {[%clk 0:02:57]} 5. Qa4+ {[%clk 0:02:57.3]}
5... Bd7 {[%clk 0:02:56.8]} 6. Qxc4 {[%clk 0:02:57.6]} 6... c5 {[%clk
0:02:57.3]} 7. Bg2 {[%clk 0:02:57.8]} 7... Bc6 {[%clk 0:02:56.8]} 8. O-O {[%clk
0:02:57.7]} 8... Nbd7 {[%clk 0:02:56.9]} 9. Rd1 {[%clk 0:02:57.2]} 9... Be7
{[%clk 0:02:56.8]} 10. d4 {[%clk 0:02:57.2]} 10... cxd4 {[%clk 0:02:57.4]} 11.
Qxd4 {[%clk 0:02:54.5]} 11... O-O {[%clk 0:02:56.7]} 12. Be3 {[%clk 0:02:53.1]}
12... Qa5 {[%clk 0:02:55]} 13. a3 {[%clk 0:02:47.7]} 13... Rfd8 {[%clk
0:02:42.5]} 14. b4 {[%clk 0:02:44.2]} 14... Qa6 {[%clk 0:02:40.5]} 15. Qd3
{[%clk 0:02:25.7]} 15... Qxd3 {[%clk 0:02:13.5]} 16. Rxd3 {[%clk 0:02:26.6]}
16... a6 {[%clk 0:02:13.8]} 17. Rad1 {[%clk 0:02:21]} 17... Rdc8 {[%clk
0:02:13.3]} 18. Bd4 {[%clk 0:02:16.6]} 18... h6 {[%clk 0:02:05.7]} 19. Ne5
{[%clk 0:02:15.2]} 19... Nxe5 {[%clk 0:02:04]} 20. Bxe5 {[%clk 0:02:16.1]} 20...
Bxg2 {[%clk 0:02:01.8]} 21. Kxg2 {[%clk 0:02:17]} 21... Ng4 {[%clk 0:02:01.5]}
22. Bd4 {[%clk 0:02:17.2]} 22... Rc6 {[%clk 0:01:55.2]} 23. h3 {[%clk
0:02:15.8]} 23... Nf6 {[%clk 0:01:55.3]} 24. Na4 {[%clk 0:02:12.1]} 24... Rac8
{[%clk 0:01:24.9]} 25. Nb6 {[%clk 0:02:10.5]} 25... Rd8 {[%clk 0:01:11]} 26. Be3
{[%clk 0:01:55.5]} 26... Rxd3 {[%clk 0:01:07.4]} 27. Rxd3 {[%clk 0:01:56.4]}
27... g5 {[%clk 0:01:07.1]} 28. Kf3 {[%clk 0:01:54.6]} 28... Kg7 {[%clk
0:01:04]} 29. Nd7 {[%clk 0:01:51]} 29... Nd5 {[%clk 0:01:00.1]} 30. Bd4+ {[%clk
0:01:49.5]} 30... Kg8 {[%clk 0:00:57.9]} 31. e4 {[%clk 0:01:46.8]} 31... Nc7
{[%clk 0:00:57.8]} 32. Nf6+ {[%clk 0:01:37.7]} 32... Kf8 {[%clk 0:00:56.2]} 33.
Nd7+ {[%clk 0:01:17.5]} 33... Kg8 {[%clk 0:00:51.3]} 34. Bc5 {[%clk 0:01:13.5]}
34... Bxc5 {[%clk 0:00:48.7]} 35. Nxc5 {[%clk 0:01:14.4]} 35... b6 {[%clk
0:00:47.1]} 36. Nxa6 {[%clk 0:00:59.7]} 36... Nxa6 {[%clk 0:00:46.9]} 37. b5
{[%clk 0:01:00.6]} 37... Rc5 {[%clk 0:00:47.4]} 38. bxa6 {[%clk 0:01:01.1]}
38... Ra5 {[%clk 0:00:47.5]} 39. Rb3 {[%clk 0:01:01.7]} 39... Rxa6 {[%clk
0:00:47.6]} 40. Ke3 {[%clk 0:01:00.8]} 40... Ra4 {[%clk 0:00:40.9]} 41. Rxb6
{[%clk 0:00:59.1]} 41... Rxa3+ {[%clk 0:00:40.6]} 42. Ke2 {[%clk 0:00:59]} 42...
Kg7 {[%clk 0:00:40.7]} 43. Kf1 {[%clk 0:00:57.6]} 43... Ra4 {[%clk 0:00:38.8]}
44. f3 {[%clk 0:00:55.7]} 44... Ra2 {[%clk 0:00:39.2]} 45. Rb7 {[%clk
0:00:50.5]} 45... Kf6 {[%clk 0:00:36]} 46. Kg1 {[%clk 0:00:50]} 46... h5 {[%clk
0:00:34.6]} 47. Kf1 {[%clk 0:00:46.9]} 47... Rc2 {[%clk 0:00:15.5]} 48. Rd7
{[%clk 0:00:44.5]} 48... Kg6 {[%clk 0:00:15.6]} 49. Kg1 {[%clk 0:00:43.6]} 49...
Ra2 {[%clk 0:00:14.4]} 50. Rc7 {[%clk 0:00:42.6]} 50... h4 {[%clk 0:00:11.9]}
51. gxh4 {[%clk 0:00:42.2]} 51... gxh4 {[%clk 0:00:12.8]} 52. Rd7 {[%clk
0:00:40.5]} 52... f6 {[%clk 0:00:09.7]} 53. Rd6 {[%clk 0:00:24.1]} 53... e5
{[%clk 0:00:09.5]} 54. f4 {[%clk 0:00:23.8]} 54... exf4 {[%clk 0:00:05.2]} 55.
e5 {[%clk 0:00:24]} 55... Kf5 {[%clk 0:00:05.5]} 56. exf6 {[%clk 0:00:24.2]}
56... Ra7 {[%clk 0:00:04.6]} 57. Kf2 {[%clk 0:00:21.8]} 57... Ke5 {[%clk
0:00:04.9]} 58. Rb6 {[%clk 0:00:19.7]} 58... Kf5 {[%clk 0:00:03.8]} 59. Rd6
{[%clk 0:00:16.6]} 59... Rc7 {[%clk 0:00:03.6]} 60. Rb6 {[%clk 0:00:15.6]} 60...
Rc2+ {[%clk 0:00:03.8]} 61. Kf3 {[%clk 0:00:16]} 61... Rc3+ {[%clk 0:00:04.1]}
62. Kg2 {[%clk 0:00:16.2]} 62... Rc7 {[%clk 0:00:05]} 63. Kf3 {[%clk 0:00:16.2]}
63... Rc3+ {[%clk 0:00:05]} 64. Kg2 {[%clk 0:00:16.4]} 64... Kg6 {[%clk
0:00:05.9]} 65. Rb4 {[%clk 0:00:14.4]} 65... Rg3+ {[%clk 0:00:05.6]} 66. Kf2
{[%clk 0:00:12.7]} 66... Rxh3 {[%clk 0:00:05.8]} 67. Rxf4 {[%clk 0:00:12.8]}
67... Kf7 {[%clk 0:00:06.4]} 68. Kg2 {[%clk 0:00:12.9]} 68... Rb3 {[%clk
0:00:06.4]} 69. Kh2 {[%clk 0:00:13.8]} 69... Rb5 {[%clk 0:00:06.1]} 70. Rxh4
{[%clk 0:00:13.6]} 70... Kxf6 {[%clk 0:00:06.6]} 71. Rf4+ {[%clk 0:00:14.1]}
71... Kg5 {[%clk 0:00:07]} 72. Rf3 {[%clk 0:00:15]} 72... Rb4 {[%clk 0:00:07.4]}
73. Kg3 {[%clk 0:00:15.6]} 73... Rg4+ {[%clk 0:00:07.2]} 74. Kh3 {[%clk
0:00:16.1]} 74... Ra4 {[%clk 0:00:08.1]} 75. Rg3+ {[%clk 0:00:15.8]} 75... Kh5
{[%clk 0:00:08.5]} 76. Rf3 {[%clk 0:00:16.7]} 76... Rb4 {[%clk 0:00:08.8]} 77.
Rf5+ {[%clk 0:00:16.2]} 77... Kg6 {[%clk 0:00:08.8]} 78. Ra5 {[%clk 0:00:16.5]}
78... Rc4 {[%clk 0:00:08.6]} 79. Kg3 {[%clk 0:00:16.5]} 79... Rb4 {[%clk
0:00:08.6]} 80. Kf3 {[%clk 0:00:16.8]} 80... Kf6 {[%clk 0:00:09.1]} 81. Ke3
{[%clk 0:00:17]} 81... Ke6 {[%clk 0:00:09.7]} 82. Kd3 {[%clk 0:00:17.3]} 82...
Kd6 {[%clk 0:00:10.3]} 83. Kc3 {[%clk 0:00:17.4]} 83... Rh4 {[%clk 0:00:10.9]}
84. Kd3 {[%clk 0:00:17.7]} 84... Rh3+ {[%clk 0:00:11.4]} 85. Kd4 {[%clk
0:00:17.2]} 85... Rh4+ {[%clk 0:00:12]} 86. Kd3 {[%clk 0:00:17.2]} 86... Rh8
{[%clk 0:00:12.9]} 87. Ra6+ {[%clk 0:00:16.7]} 87... Kc5 {[%clk 0:00:13.3]} 88.
Ra5+ {[%clk 0:00:17.6]} 88... Kb4 {[%clk 0:00:13.7]} 89. Rf5 {[%clk 0:00:17.8]}
89... Rd8+ {[%clk 0:00:13.8]} 90. Ke4 {[%clk 0:00:18.7]} 90... Kc4 {[%clk
0:00:14.4]} 91. Rf4 {[%clk 0:00:17.5]} 91... Re8+ {[%clk 0:00:14.4]} 92. Kf5+
{[%clk 0:00:17.3]} 92... Kd5 {[%clk 0:00:14.9]} 93. Rf3 {[%clk 0:00:14.8]} 93...
Rf8+ {[%clk 0:00:14.7]} 94. Kg4 {[%clk 0:00:14.7]} 94... Rg8+ {[%clk 0:00:15.3]}
95. Kf4 {[%clk 0:00:14.7]} 95... Kd4 {[%clk 0:00:16]} 96. Ra3 {[%clk 0:00:11]}
96... Rf8+ {[%clk 0:00:16.3]} 97. Kg3 {[%clk 0:00:10.9]} 97... Ke4 {[%clk
0:00:16.6]} 98. Ra4+ {[%clk 0:00:11.1]} 98... Kf5 {[%clk 0:00:17.1]} 99. Rf4+
{[%clk 0:00:10.7]} 1-0

[Event "*** Titled Tuesday Blitz"]
[Site "Chess.com"]
[Date "2020.11.10"]
[Round "11"]
[White "SlavenPastar"]
[Black "tandaleo"]
[Result "1-0"]
[WhiteElo "2506"]
[BlackElo "2307"]
[TimeControl "180+1"]
[EndTime "12:07:16 PST"]
[Termination "SlavenPastar won by resignation"]

1. c4 {[%clk 0:03:00.9]} 1... e6 {[%clk 0:03:00.1]} 2. Nc3 {[%clk 0:03:00.8]}
2... d5 {[%clk 0:03:00.8]} 3. d4 {[%clk 0:02:56.8]} 3... c6 {[%clk 0:03:00.3]}
4. e4 {[%clk 0:02:56.3]} 4... dxe4 {[%clk 0:02:59.3]} 5. Nxe4 {[%clk 0:02:57.2]}
5... c5 {[%clk 0:02:59.9]} 6. Nxc5 {[%clk 0:02:50]} 6... Nc6 {[%clk 0:02:59.4]}
7. Nf3 {[%clk 0:02:44.7]} 7... Nxd4 {[%clk 0:02:42.4]} 8. Nxd4 {[%clk
0:02:41.2]} 8... Bxc5 {[%clk 0:02:40.6]} 9. Be3 {[%clk 0:02:22.1]} 9... Bb4+
{[%clk 0:02:34]} 10. Ke2 {[%clk 0:02:22.2]} 10... Nf6 {[%clk 0:02:31.4]} 11.
Qa4+ {[%clk 0:02:20.2]} 1-0

[Event "*** Titled Tuesday Blitz"]
[Site "Chess.com"]
[Date "2020.11.10"]
[Round "11"]
[White "WPWPWP-2015"]
[Black "Jenia84"]
[Result "1-0"]
[WhiteElo "2509"]
[BlackElo "2308"]
[TimeControl "180+1"]
[EndTime "12:08:59 PST"]
[Termination "WPWPWP-2015 won by resignation"]

1. d4 {[%clk 0:03:00.9]} 1... Nf6 {[%clk 0:02:56.3]} 2. c4 {[%clk 0:03:00.2]}
2... e6 {[%clk 0:02:55.7]} 3. Nc3 {[%clk 0:02:59.6]} 3... Bb4 {[%clk 0:02:55.3]}
4. f3 {[%clk 0:03:00.2]} 4... d5 {[%clk 0:02:52.4]} 5. a3 {[%clk 0:02:51.5]}
5... Bxc3+ {[%clk 0:02:50.7]} 6. bxc3 {[%clk 0:02:51.6]} 6... c5 {[%clk
0:02:51.1]} 7. cxd5 {[%clk 0:02:50]} 7... Nxd5 {[%clk 0:02:46.9]} 8. dxc5 {[%clk
0:02:49.7]} 8... Qa5 {[%clk 0:02:45.9]} 9. e4 {[%clk 0:02:49.2]} 9... Ne7 {[%clk
0:02:35.1]} 10. Qb3 {[%clk 0:02:48.2]} 10... Nbc6 {[%clk 0:02:27.8]} 11. Be3
{[%clk 0:02:47.1]} 11... O-O {[%clk 0:02:21.8]} 12. Bb5 {[%clk 0:02:45.9]} 12...
a6 {[%clk 0:02:18.7]} 13. Bc4 {[%clk 0:02:41.9]} 13... Ne5 {[%clk 0:02:16.4]}
14. Ne2 {[%clk 0:02:35.9]} 14... Bd7 {[%clk 0:02:15.9]} 15. Nd4 {[%clk
0:02:23.5]} 15... Qxc5 {[%clk 0:01:59.6]} 16. Be2 {[%clk 0:02:18]} 16... Rac8
{[%clk 0:01:36.7]} 17. Nf5 {[%clk 0:02:17.1]} 17... Qc7 {[%clk 0:01:23.8]} 18.
Nxe7+ {[%clk 0:02:03.9]} 1-0

[Event "*** Titled Tuesday Blitz"]
[Site "Chess.com"]
[Date "2020.11.10"]
[Round "11"]
[White "Bastiandash"]
[Black "zala02"]
[Result "1-0"]
[WhiteElo "2362"]
[BlackElo "2163"]
[TimeControl "180+1"]
[EndTime "12:09:01 PST"]
[Termination "Bastiandash won by resignation"]

1. d4 {[%clk 0:03:00.9]} 1... Nf6 {[%clk 0:02:58.7]} 2. Nf3 {[%clk 0:03:01.8]}
2... d5 {[%clk 0:02:58.7]} 3. Bg5 {[%clk 0:03:02.4]} 3... Ne4 {[%clk 0:02:53.6]}
4. Bf4 {[%clk 0:03:01.4]} 4... c5 {[%clk 0:02:53.3]} 5. Be3 {[%clk 0:03:00.2]}
5... e6 {[%clk 0:02:50.8]} 6. c3 {[%clk 0:02:59.5]} 6... Nc6 {[%clk 0:02:50.2]}
7. Nbd2 {[%clk 0:02:58.8]} 7... cxd4 {[%clk 0:02:45.9]} 8. Nxd4 {[%clk
0:02:57.4]} 8... Nd6 {[%clk 0:02:39.2]} 9. Nxc6 {[%clk 0:02:48]} 9... bxc6
{[%clk 0:02:40.1]} 10. Bc5 {[%clk 0:02:48.9]} 10... Be7 {[%clk 0:02:35.3]} 11.
g3 {[%clk 0:02:48.6]} 11... O-O {[%clk 0:02:33.4]} 12. Bg2 {[%clk 0:02:48.5]}
12... a5 {[%clk 0:02:20.4]} 13. O-O {[%clk 0:02:48]} 13... Rb8 {[%clk
0:02:19.5]} 14. Ba3 {[%clk 0:02:47]} 14... Ba6 {[%clk 0:02:18.2]} 15. Re1 {[%clk
0:02:46.2]} 15... Nb5 {[%clk 0:01:50.2]} 16. Bxe7 {[%clk 0:02:45.7]} 16... Qxe7
{[%clk 0:01:51.1]} 17. e4 {[%clk 0:02:46.3]} 17... Nd6 {[%clk 0:01:50.7]} 18.
exd5 {[%clk 0:02:44.8]} 18... cxd5 {[%clk 0:01:49]} 19. Bxd5 {[%clk 0:02:39.9]}
19... Rxb2 {[%clk 0:01:46.1]} 20. Bb3 {[%clk 0:02:39.8]} 20... Nf5 {[%clk
0:01:22.1]} 21. Qc1 {[%clk 0:02:35.1]} 21... Qa3 {[%clk 0:01:22.1]} 22. Nb1
{[%clk 0:02:25.4]} 22... Rxb1 {[%clk 0:01:13.9]} 23. Qxa3 {[%clk 0:02:23.3]} 1-0

[Event "*** Titled Tuesday Blitz"]
[Site "Chess.com"]
[Date "2020.11.10"]
[Round "11"]
[White "Zkid"]
[Black "GOGIEFF"]
[Result "1-0"]
[WhiteElo "2821"]
[BlackElo "2901"]
[TimeControl "180+1"]
[EndTime "12:09:15 PST"]
[Termination "Zkid won by resignation"]

1. e4 {[%clk 0:03:00.9]} 1... c5 {[%clk 0:03:00]} 2. Nf3 {[%clk 0:03:00.8]} 2...
d6 {[%clk 0:03:00.4]} 3. d4 {[%clk 0:03:00.8]} 3... cxd4 {[%clk 0:03:00.7]} 4.
Nxd4 {[%clk 0:03:01.7]} 4... Nf6 {[%clk 0:03:00.9]} 5. f3 {[%clk 0:03:02.1]}
5... e5 {[%clk 0:02:59]} 6. Nb3 {[%clk 0:03:02.2]} 6... Be7 {[%clk 0:02:59.4]}
7. c4 {[%clk 0:03:02]} 7... a5 {[%clk 0:02:59.1]} 8. Nc3 {[%clk 0:03:01.2]} 8...
a4 {[%clk 0:02:55.2]} 9. Nd2 {[%clk 0:03:00.9]} 9... Qa5 {[%clk 0:02:55.3]} 10.
Be2 {[%clk 0:02:53.7]} 10... O-O {[%clk 0:02:53.7]} 11. O-O {[%clk 0:02:52.4]}
11... Be6 {[%clk 0:02:43.9]} 12. Nd5 {[%clk 0:02:48.8]} 12... Bxd5 {[%clk
0:02:32]} 13. cxd5 {[%clk 0:02:48.2]} 13... b5 {[%clk 0:02:32.2]} 14. Kh1 {[%clk
0:02:46.3]} 14... Nbd7 {[%clk 0:02:24.1]} 15. b4 {[%clk 0:02:43.5]} 15... Qb6
{[%clk 0:01:50.1]} 16. Nb1 {[%clk 0:02:42.2]} 16... Ne8 {[%clk 0:01:37.1]} 17.
Na3 {[%clk 0:02:33.5]} 17... Nc7 {[%clk 0:01:36.6]} 18. Qd3 {[%clk 0:02:32.2]}
18... Rab8 {[%clk 0:01:27.7]} 19. Be3 {[%clk 0:02:31.2]} 19... Qb7 {[%clk
0:01:24.3]} 20. Rfc1 {[%clk 0:02:29.2]} 20... Nb6 {[%clk 0:01:16.7]} 21. Rc6
{[%clk 0:02:16.1]} 21... Nba8 {[%clk 0:01:09.3]} 22. Rac1 {[%clk 0:02:15]} 22...
Bd8 {[%clk 0:01:09.2]} 23. Rxd6 {[%clk 0:02:12.8]} 1-0

[Event "*** Titled Tuesday Blitz"]
[Site "Chess.com"]
[Date "2020.11.10"]
[Round "11"]
[White "MokshanovAlexey"]
[Black "rasmussvane"]
[Result "1-0"]
[WhiteElo "2640"]
[BlackElo "2846"]
[TimeControl "180+1"]
[EndTime "12:09:36 PST"]
[Termination "MokshanovAlexey won by resignation"]

1. e4 {[%clk 0:03:00.6]} 1... c6 {[%clk 0:03:00.2]} 2. d4 {[%clk 0:03:00.3]}
2... d5 {[%clk 0:03:01.1]} 3. e5 {[%clk 0:03:00.8]} 3... Bf5 {[%clk 0:03:00.4]}
4. Nf3 {[%clk 0:03:01]} 4... e6 {[%clk 0:03:00.5]} 5. Be2 {[%clk 0:03:01.4]}
5... Ne7 {[%clk 0:03:00.5]} 6. O-O {[%clk 0:03:01.6]} 6... Ng6 {[%clk 0:03:01]}
7. Be3 {[%clk 0:02:52.2]} 7... Nd7 {[%clk 0:02:56.8]} 8. Ne1 {[%clk 0:02:46.6]}
8... h5 {[%clk 0:02:55.7]} 9. h3 {[%clk 0:02:44.1]} 9... f6 {[%clk 0:02:48.1]}
10. f4 {[%clk 0:02:23.6]} 10... Qb6 {[%clk 0:02:45]} 11. Qc1 {[%clk 0:01:58.5]}
11... c5 {[%clk 0:02:43.6]} 12. c3 {[%clk 0:01:52.2]} 12... Rc8 {[%clk
0:02:42.6]} 13. Bd3 {[%clk 0:01:49.7]} 13... cxd4 {[%clk 0:02:21.4]} 14. Bxf5
{[%clk 0:01:49.6]} 14... exf5 {[%clk 0:02:22]} 15. Bf2 {[%clk 0:01:49.7]} 15...
fxe5 {[%clk 0:01:59.2]} 16. fxe5 {[%clk 0:01:49.4]} 16... Ndxe5 {[%clk
0:02:00.1]} 17. Qg5 {[%clk 0:01:34.6]} 17... Be7 {[%clk 0:01:48.3]} 18. Qxf5
{[%clk 0:01:33.3]} 18... Rf8 {[%clk 0:01:45.4]} 19. Qxc8+ {[%clk 0:01:32.7]}
19... Kf7 {[%clk 0:01:38.4]} 20. Bxd4+ {[%clk 0:01:28.8]} 20... Bf6 {[%clk
0:01:30.8]} 21. Qxf8+ {[%clk 0:01:27.7]} 21... Nxf8 {[%clk 0:01:29.5]} 22. Bxb6
{[%clk 0:01:27.8]} 1-0

[Event "*** Titled Tuesday Blitz"]
[Site "Chess.com"]
[Date "2020.11.10"]
[Round "11"]
[White "Ural_bogatyr"]
[Black "Anna_ChessMate"]
[Result "0-1"]
[WhiteElo "2417"]
[BlackElo "2613"]
[TimeControl "180+1"]
[EndTime "12:09:37 PST"]
[Termination "Anna_ChessMate won by resignation"]

1. e4 {[%clk 0:02:54.9]} 1... c6 {[%clk 0:02:59.9]} 2. d4 {[%clk 0:02:54.5]}
2... d5 {[%clk 0:03:00.8]} 3. e5 {[%clk 0:02:54.9]} 3... Bf5 {[%clk 0:03:00.5]}
4. Ne2 {[%clk 0:02:55.4]} 4... e6 {[%clk 0:02:59.2]} 5. Ng3 {[%clk 0:02:55.9]}
5... Bg6 {[%clk 0:02:59.4]} 6. h4 {[%clk 0:02:56.8]} 6... h6 {[%clk 0:02:59.2]}
7. h5 {[%clk 0:02:57.7]} 7... Bh7 {[%clk 0:02:59.5]} 8. Bd3 {[%clk 0:02:58.3]}
8... Bxd3 {[%clk 0:02:59.7]} 9. cxd3 {[%clk 0:02:59.2]} 9... Be7 {[%clk
0:02:46.2]} 10. Be3 {[%clk 0:02:50.8]} 10... Nd7 {[%clk 0:02:44]} 11. Nd2 {[%clk
0:02:44.2]} 11... Bg5 {[%clk 0:02:40.3]} 12. f4 {[%clk 0:02:43.4]} 12... Bh4
{[%clk 0:02:39.9]} 13. Qg4 {[%clk 0:02:41.3]} 13... Bxg3+ {[%clk 0:02:36.8]} 14.
Qxg3 {[%clk 0:02:42.2]} 14... Ne7 {[%clk 0:02:21.8]} 15. Qxg7 {[%clk 0:02:05.4]}
15... Rg8 {[%clk 0:02:21]} 16. Qxh6 {[%clk 0:02:05.9]} 16... Nf5 {[%clk
0:02:14.8]} 17. Qh7 {[%clk 0:02:05.2]} 17... Ke7 {[%clk 0:02:14.8]} 18. Bf2
{[%clk 0:01:31.5]} 18... Rh8 {[%clk 0:02:13.8]} 19. Bh4+ {[%clk 0:00:54.5]}
19... Nxh4 {[%clk 0:02:13.3]} 20. Qg7 {[%clk 0:00:55]} 20... Rg8 {[%clk
0:02:13]} 0-1

[Event "*** Titled Tuesday Blitz"]
[Site "Chess.com"]
[Date "2020.11.10"]
[Round "11"]
[White "juancruzarias"]
[Black "BAS8892"]
[Result "0-1"]
[WhiteElo "2601"]
[BlackElo "2749"]
[TimeControl "180+1"]
[EndTime "12:09:44 PST"]
[Termination "BAS8892 won by resignation"]

1. d4 {[%clk 0:03:00.9]} 1... Nf6 {[%clk 0:02:58.9]} 2. Bg5 {[%clk 0:03:01.4]}
2... Ne4 {[%clk 0:02:56.9]} 3. Bh4 {[%clk 0:03:01.3]} 3... c5 {[%clk 0:02:57.4]}
4. f3 {[%clk 0:03:01.7]} 4... Nf6 {[%clk 0:02:53.1]} 5. d5 {[%clk 0:03:02]} 5...
Qb6 {[%clk 0:02:52.6]} 6. Nd2 {[%clk 0:03:02.5]} 6... Qxb2 {[%clk 0:02:47.3]} 7.
e4 {[%clk 0:03:02.9]} 7... d6 {[%clk 0:02:46.2]} 8. Bd3 {[%clk 0:02:47.4]} 8...
Qb6 {[%clk 0:02:44.4]} 9. Ne2 {[%clk 0:02:46.8]} 9... g6 {[%clk 0:02:44.1]} 10.
Rb1 {[%clk 0:02:46.1]} 10... Qc7 {[%clk 0:02:43.4]} 11. O-O {[%clk 0:02:45.7]}
11... Bg7 {[%clk 0:02:43.4]} 12. Nc4 {[%clk 0:02:46]} 12... O-O {[%clk
0:02:41.7]} 13. a4 {[%clk 0:02:44.6]} 13... b6 {[%clk 0:02:40.5]} 14. f4 {[%clk
0:02:44.7]} 14... Nbd7 {[%clk 0:02:40.3]} 15. Nc3 {[%clk 0:02:42.1]} 15... a6
{[%clk 0:02:39.1]} 16. Qd2 {[%clk 0:02:20]} 16... Rb8 {[%clk 0:02:38.3]} 17. Bg3
{[%clk 0:02:18.5]} 17... Nh5 {[%clk 0:02:36.8]} 18. Bf2 {[%clk 0:02:18.3]} 18...
Nxf4 {[%clk 0:02:35.1]} 19. Qxf4 {[%clk 0:02:16.3]} 19... Bxc3 {[%clk
0:02:34.6]} 20. Qh4 {[%clk 0:02:12.5]} 20... Bg7 {[%clk 0:02:33.3]} 21. Qxe7
{[%clk 0:02:12.1]} 21... b5 {[%clk 0:02:19.2]} 22. Qxd6 {[%clk 0:02:11.5]} 22...
Qd8 {[%clk 0:02:10.1]} 23. axb5 {[%clk 0:02:10.4]} 23... axb5 {[%clk 0:02:09.7]}
24. Be2 {[%clk 0:01:39]} 24... Re8 {[%clk 0:01:53.9]} 25. Nd2 {[%clk 0:01:34.3]}
25... Be5 {[%clk 0:01:49.9]} 26. Qc6 {[%clk 0:01:34.4]} 26... Rb6 {[%clk
0:01:48.8]} 27. Qa8 {[%clk 0:01:33.7]} 27... Ra6 {[%clk 0:01:42.9]} 28. Bh4
{[%clk 0:01:32.7]} 28... Qxh4 {[%clk 0:01:40.3]} 0-1

[Event "*** Titled Tuesday Blitz"]
[Site "Chess.com"]
[Date "2020.11.10"]
[Round "11"]
[White "GigaQuparadze"]
[Black "MatyChess1"]
[Result "0-1"]
[WhiteElo "2716"]
[BlackElo "2577"]
[TimeControl "180+1"]
[EndTime "12:09:51 PST"]
[Termination "MatyChess1 won by checkmate"]

1. e4 {[%clk 0:03:00.9]} 1... c5 {[%clk 0:02:58.5]} 2. d4 {[%clk 0:03:00.5]}
2... cxd4 {[%clk 0:02:58.4]} 3. c3 {[%clk 0:03:00.7]} 3... Nf6 {[%clk
0:02:57.4]} 4. e5 {[%clk 0:03:00.7]} 4... Nd5 {[%clk 0:02:58]} 5. Qxd4 {[%clk
0:03:00.7]} 5... e6 {[%clk 0:02:56]} 6. Nf3 {[%clk 0:03:01.2]} 6... Nc6 {[%clk
0:02:56.5]} 7. Qg4 {[%clk 0:03:01.4]} 7... Qc7 {[%clk 0:02:49.5]} 8. Qg3 {[%clk
0:03:00.9]} 8... b6 {[%clk 0:02:45.7]} 9. Bb5 {[%clk 0:02:59.6]} 9... Bb7 {[%clk
0:02:45.4]} 10. O-O {[%clk 0:02:59.1]} 10... h6 {[%clk 0:02:29.5]} 11. Nbd2
{[%clk 0:02:55.6]} 11... Nde7 {[%clk 0:02:06.4]} 12. Bd3 {[%clk 0:02:50.3]}
12... Nd5 {[%clk 0:01:30.8]} 13. Ne4 {[%clk 0:02:46.5]} 13... O-O-O {[%clk
0:01:27.4]} 14. Nd6+ {[%clk 0:02:25.9]} 14... Bxd6 {[%clk 0:01:26.6]} 15. exd6
{[%clk 0:02:26.8]} 15... Qb8 {[%clk 0:01:27.5]} 16. Nd4 {[%clk 0:02:25.7]} 16...
Nxd4 {[%clk 0:01:17.1]} 17. cxd4 {[%clk 0:02:26.6]} 17... Bc6 {[%clk 0:01:16.1]}
18. Bg5 {[%clk 0:02:06.7]} 18... hxg5 {[%clk 0:01:11.4]} 19. Ba6+ {[%clk
0:02:05]} 19... Qb7 {[%clk 0:01:11.1]} 20. Bxb7+ {[%clk 0:02:04]} 20... Kxb7
{[%clk 0:01:12]} 21. b4 {[%clk 0:02:04]} 21... Nf4 {[%clk 0:01:03.2]} 22. Qxg5
{[%clk 0:01:55.1]} 22... Ne2+ {[%clk 0:00:58.1]} 23. Kh1 {[%clk 0:01:55.1]}
23... Rxh2+ {[%clk 0:00:59]} 24. Kxh2 {[%clk 0:01:55.5]} 24... Rh8+ {[%clk
0:00:58.1]} 25. Qh4 {[%clk 0:01:56.4]} 25... Rxh4# {[%clk 0:00:56.9]} 0-1

[Event "*** Titled Tuesday Blitz"]
[Site "Chess.com"]
[Date "2020.11.10"]
[Round "11"]
[White "Azerichess"]
[Black "dropstoneDP"]
[Result "0-1"]
[WhiteElo "2972"]
[BlackElo "2960"]
[TimeControl "180+1"]
[EndTime "12:09:58 PST"]
[Termination "dropstoneDP won by resignation"]

1. d4 {[%clk 0:03:00.9]} 1... Nf6 {[%clk 0:03:00.4]} 2. c4 {[%clk 0:03:01]} 2...
e6 {[%clk 0:03:01.1]} 3. Nc3 {[%clk 0:03:01.5]} 3... Bb4 {[%clk 0:03:01.1]} 4.
Qc2 {[%clk 0:03:02.1]} 4... d5 {[%clk 0:03:01.1]} 5. cxd5 {[%clk 0:03:01.6]}
5... exd5 {[%clk 0:03:02]} 6. Bg5 {[%clk 0:02:59.1]} 6... h6 {[%clk 0:03:01.1]}
7. Bh4 {[%clk 0:02:59.2]} 7... Qe7 {[%clk 0:02:57.6]} 8. Rc1 {[%clk 0:02:50.8]}
8... c5 {[%clk 0:02:55.6]} 9. Nf3 {[%clk 0:02:49.1]} 9... Nc6 {[%clk 0:02:52.7]}
10. a3 {[%clk 0:02:47.1]} 10... cxd4 {[%clk 0:01:45.7]} 11. axb4 {[%clk
0:02:42.8]} 11... Nxb4 {[%clk 0:01:43.8]} 12. Qa4+ {[%clk 0:02:23.5]} 12... Bd7
{[%clk 0:01:43]} 13. Bxf6 {[%clk 0:02:23.3]} 13... gxf6 {[%clk 0:01:41.5]} 14.
Qd1 {[%clk 0:02:12.3]} 14... dxc3 {[%clk 0:01:40.1]} 15. bxc3 {[%clk 0:02:12.4]}
15... Na2 {[%clk 0:01:27.4]} 16. Rc2 {[%clk 0:02:07.8]} 16... Ba4 {[%clk
0:01:27.4]} 17. e3 {[%clk 0:02:04.1]} 17... Nxc3 {[%clk 0:01:18.5]} 18. Qc1
{[%clk 0:02:01.1]} 18... Bxc2 {[%clk 0:01:15.4]} 19. Qxc2 {[%clk 0:02:02]} 19...
Qb4 {[%clk 0:01:14.2]} 20. Bd3 {[%clk 0:02:02.1]} 20... Ne4+ {[%clk 0:01:06.2]}
21. Ke2 {[%clk 0:02:02.2]} 21... Nc3+ {[%clk 0:01:06.7]} 22. Kd2 {[%clk
0:02:00.9]} 22... Rc8 {[%clk 0:01:06.5]} 0-1